[Event "*** SCC Grand Prix: Titled Tuesday Blitz"]
[Site "Chess.com"]
[Date "2020.09.08"]
[Round "8"]
[White "Violord"]
[Black "penguingm1"]
[Result "0-1"]
[WhiteElo "2678"]
[BlackElo "2945"]
[TimeControl "180+1"]
[EndTime "11:37:16 PDT"]
[Termination "penguingm1 won on time"]

1. e4 {[%clk 0:02:54.6]} 1... e5 {[%clk 0:02:58.5]} 2. Nf3 {[%clk 0:02:54]} 2...
Nc6 {[%clk 0:02:57.7]} 3. Bb5 {[%clk 0:02:53.4]} 3... g6 {[%clk 0:02:55.3]} 4.
c3 {[%clk 0:02:52.6]} 4... a6 {[%clk 0:02:54.7]} 5. Ba4 {[%clk 0:02:51.8]} 5...
Bg7 {[%clk 0:02:54.7]} 6. d4 {[%clk 0:02:51.9]} 6... exd4 {[%clk 0:02:55.2]} 7.
cxd4 {[%clk 0:02:51.6]} 7... b5 {[%clk 0:02:55.9]} 8. Bc2 {[%clk 0:02:47.8]}
8... d6 {[%clk 0:02:55.5]} 9. d5 {[%clk 0:02:44.8]} 9... Na5 {[%clk 0:02:47]}
10. O-O {[%clk 0:02:29.7]} 10... Nc4 {[%clk 0:02:31.7]} 11. a4 {[%clk
0:02:28.8]} 11... Nxb2 {[%clk 0:02:07.2]} 12. Bxb2 {[%clk 0:02:22.7]} 12... Bxb2
{[%clk 0:02:08.1]} 13. Ra2 {[%clk 0:02:22.9]} 13... Bg7 {[%clk 0:02:08.7]} 14.
axb5 {[%clk 0:02:22.7]} 14... Nf6 {[%clk 0:01:55.8]} 15. Bd3 {[%clk 0:02:18.9]}
15... a5 {[%clk 0:01:49.2]} 16. Nbd2 {[%clk 0:02:18.7]} 16... O-O {[%clk
0:01:27.3]} 17. Nc4 {[%clk 0:02:18.5]} 17... Nd7 {[%clk 0:00:30.8]} 18. Nxa5
{[%clk 0:02:15.4]} 18... Qf6 {[%clk 0:00:30.9]} 19. Qc2 {[%clk 0:02:03.9]} 19...
Nc5 {[%clk 0:00:26.3]} 20. Be2 {[%clk 0:01:42.4]} 20... Re8 {[%clk 0:00:24.9]}
21. e5 {[%clk 0:01:35.1]} 21... Qf4 {[%clk 0:00:24]} 22. Nc6 {[%clk 0:01:27.2]}
22... Bf5 {[%clk 0:00:19.1]} 23. Rxa8 {[%clk 0:01:24.7]} 23... Rxa8 {[%clk
0:00:20]} 24. Qc4 {[%clk 0:01:18]} 24... Qxc4 {[%clk 0:00:09.3]} 25. Bxc4 {[%clk
0:01:17.4]} 25... Ra4 {[%clk 0:00:09]} 26. Rc1 {[%clk 0:00:55.6]} 26... Bh6
{[%clk 0:00:09.1]} 27. Rc3 {[%clk 0:00:43.4]} 27... Ra1+ {[%clk 0:00:07.7]} 28.
Bf1 {[%clk 0:00:43]} 28... Bd3 {[%clk 0:00:08.2]} 29. Rxd3 {[%clk 0:00:36.2]}
29... Nxd3 {[%clk 0:00:08.5]} 30. b6 {[%clk 0:00:25.4]} 30... cxb6 {[%clk
0:00:07.8]} 31. exd6 {[%clk 0:00:25.6]} 31... Nc5 {[%clk 0:00:08.2]} 32. Nfe5
{[%clk 0:00:25]} 32... Bg5 {[%clk 0:00:04.3]} 33. d7 {[%clk 0:00:24]} 33... Nb7
{[%clk 0:00:04.2]} 34. g3 {[%clk 0:00:21]} 34... Kf8 {[%clk 0:00:03.8]} 35. Kg2
{[%clk 0:00:20.2]} 35... Bf6 {[%clk 0:00:03.5]} 36. Nc4 {[%clk 0:00:19.8]} 36...
b5 {[%clk 0:00:03.5]} 37. Nb6 {[%clk 0:00:18.4]} 37... b4 {[%clk 0:00:03.9]} 38.
Nxb4 {[%clk 0:00:17.9]} 38... Ra5 {[%clk 0:00:03.5]} 39. Nc6 {[%clk 0:00:16.9]}
39... Rc5 {[%clk 0:00:04]} 40. h4 {[%clk 0:00:14.5]} 40... Nd8 {[%clk
0:00:04.4]} 41. Na4 {[%clk 0:00:11.1]} 41... Rxd5 {[%clk 0:00:04.5]} 42. Nxd8
{[%clk 0:00:10.5]} 42... Bxd8 {[%clk 0:00:05.4]} 43. Nc3 {[%clk 0:00:09.2]}
43... Rxd7 {[%clk 0:00:05.8]} 44. Ne4 {[%clk 0:00:09.9]} 44... Bb6 {[%clk
0:00:06.1]} 45. f4 {[%clk 0:00:08.7]} 45... Ra7 {[%clk 0:00:06.2]} 46. Be2
{[%clk 0:00:06.8]} 46... Ra2 {[%clk 0:00:06.4]} 47. Kf3 {[%clk 0:00:06.4]} 47...
Ra3+ {[%clk 0:00:03.8]} 48. Kg2 {[%clk 0:00:06]} 48... Ke7 {[%clk 0:00:03.9]}
49. Bf3 {[%clk 0:00:06]} 49... h6 {[%clk 0:00:04.3]} 50. h5 {[%clk 0:00:05.7]}
50... f5 {[%clk 0:00:04.9]} 51. Nc3 {[%clk 0:00:01.2]} 51... Rxc3 {[%clk
0:00:05]} 0-1

[Event "*** SCC Grand Prix: Titled Tuesday Blitz"]
[Site "Chess.com"]
[Date "2020.09.08"]
[Round "8"]
[White "azikom"]
[Black "IveBeenThroughPain"]
[Result "1-0"]
[WhiteElo "2637"]
[BlackElo "2475"]
[TimeControl "180+1"]
[EndTime "11:37:17 PDT"]
[Termination "azikom won by resignation"]

1. Nf3 {[%clk 0:02:59.7]} 1... d6 {[%clk 0:02:59.9]} 2. e4 {[%clk 0:02:56.8]}
2... Nf6 {[%clk 0:02:59.6]} 3. Nc3 {[%clk 0:02:54.9]} 3... e5 {[%clk 0:02:59.9]}
4. d4 {[%clk 0:02:55.2]} 4... Nbd7 {[%clk 0:03:00.3]} 5. Be3 {[%clk 0:02:47.4]}
5... Be7 {[%clk 0:02:55.2]} 6. h3 {[%clk 0:02:47.3]} 6... c6 {[%clk 0:02:55.2]}
7. Qd2 {[%clk 0:02:45.2]} 7... b5 {[%clk 0:02:55.6]} 8. Bd3 {[%clk 0:02:44.6]}
8... O-O {[%clk 0:02:55.4]} 9. O-O {[%clk 0:02:43]} 9... a5 {[%clk 0:02:54.9]}
10. Ne2 {[%clk 0:02:42.5]} 10... Bb7 {[%clk 0:02:37.5]} 11. Ng3 {[%clk
0:02:41.2]} 11... g6 {[%clk 0:02:34.3]} 12. c3 {[%clk 0:02:39.6]} 12... Re8
{[%clk 0:02:27.5]} 13. Rfe1 {[%clk 0:02:37.2]} 13... Qc7 {[%clk 0:02:27.4]} 14.
Rad1 {[%clk 0:02:36.5]} 14... Rad8 {[%clk 0:02:26.8]} 15. Bh6 {[%clk 0:02:31.5]}
15... Bf8 {[%clk 0:02:26.5]} 16. Nh2 {[%clk 0:02:29.6]} 16... Bg7 {[%clk
0:02:23.4]} 17. Bxg7 {[%clk 0:02:25.9]} 17... Kxg7 {[%clk 0:02:23.7]} 18. f4
{[%clk 0:02:23]} 18... b4 {[%clk 0:02:04.6]} 19. Rf1 {[%clk 0:02:20.1]} 19...
bxc3 {[%clk 0:02:01]} 20. bxc3 {[%clk 0:02:19.9]} 20... c5 {[%clk 0:01:52.4]}
21. fxe5 {[%clk 0:02:15.2]} 21... dxe5 {[%clk 0:01:52.5]} 22. d5 {[%clk
0:02:14.6]} 22... c4 {[%clk 0:01:53.1]} 23. Be2 {[%clk 0:02:08.8]} 23... Nc5
{[%clk 0:01:52.7]} 24. Qe3 {[%clk 0:02:08.2]} 24... Nd3 {[%clk 0:01:48]} 25.
Bxd3 {[%clk 0:01:38]} 25... cxd3 {[%clk 0:01:47.2]} 26. Qg5 {[%clk 0:01:18.2]}
26... Ng8 {[%clk 0:01:36.8]} 27. Kh1 {[%clk 0:01:05.9]} 27... f6 {[%clk
0:01:22.2]} 28. Nh5+ {[%clk 0:01:03.9]} 28... Kh8 {[%clk 0:01:12.7]} 29. Nxf6
{[%clk 0:01:03.7]} 29... Qe7 {[%clk 0:01:13.3]} 30. Nhg4 {[%clk 0:01:00.5]}
30... Rd6 {[%clk 0:01:08.9]} 31. Nxe8 {[%clk 0:00:45.4]} 31... Qxg5 {[%clk
0:01:07.9]} 32. Nxd6 {[%clk 0:00:45.2]} 32... Qe7 {[%clk 0:01:04.4]} 33. Nxb7
{[%clk 0:00:44.9]} 33... Qxb7 {[%clk 0:01:04.2]} 34. Nxe5 {[%clk 0:00:44.6]}
34... Qe7 {[%clk 0:00:57.8]} 35. Nf7+ {[%clk 0:00:40.7]} 35... Kg7 {[%clk
0:00:57.9]} 36. e5 {[%clk 0:00:40.9]} 36... Qd7 {[%clk 0:00:51.8]} 37. Rxd3
{[%clk 0:00:39.9]} 37... Qb5 {[%clk 0:00:51.8]} 38. Rff3 {[%clk 0:00:36.9]}
38... Ne7 {[%clk 0:00:50]} 39. d6 {[%clk 0:00:35.6]} 39... Nc6 {[%clk
0:00:50.5]} 40. d7 {[%clk 0:00:34.9]} 40... Qb1+ {[%clk 0:00:42]} 41. Kh2 {[%clk
0:00:34.8]} 41... Qb6 {[%clk 0:00:42.9]} 42. d8=Q {[%clk 0:00:33.3]} 42... Nxd8
{[%clk 0:00:42.3]} 43. Rxd8 {[%clk 0:00:31.7]} 43... a4 {[%clk 0:00:36.8]} 44.
a3 {[%clk 0:00:28.5]} 44... Qc7 {[%clk 0:00:36.1]} 45. Rd6 {[%clk 0:00:27.4]}
45... Qc5 {[%clk 0:00:35.6]} 46. Rd7 {[%clk 0:00:27.2]} 46... Kg8 {[%clk
0:00:34.4]} 47. Nh6+ {[%clk 0:00:26.7]} 47... Kh8 {[%clk 0:00:31.9]} 48. Nf7+
{[%clk 0:00:26.8]} 48... Kg8 {[%clk 0:00:31.8]} 49. c4 {[%clk 0:00:27.2]} 49...
Kg7 {[%clk 0:00:18.3]} 50. Ng5+ {[%clk 0:00:23.8]} 50... Kh6 {[%clk 0:00:18]}
51. Nf7+ {[%clk 0:00:22]} 51... Kg7 {[%clk 0:00:18.1]} 52. Rb7 {[%clk
0:00:20.9]} 52... g5 {[%clk 0:00:14.4]} 53. Nxg5+ {[%clk 0:00:20.5]} 53... Kg6
{[%clk 0:00:14.8]} 54. Nf7 {[%clk 0:00:20.7]} 54... Qc6 {[%clk 0:00:14.1]} 55.
Rb5 {[%clk 0:00:19.8]} 55... Qe6 {[%clk 0:00:13.9]} 56. Rd5 {[%clk 0:00:19.5]}
56... h5 {[%clk 0:00:13.8]} 57. Rd6 {[%clk 0:00:19.6]} 57... Qxd6 {[%clk
0:00:13.4]} 58. exd6 {[%clk 0:00:19.7]} 58... h4 {[%clk 0:00:14.3]} 59. d7
{[%clk 0:00:19.6]} 1-0

[Event "*** SCC Grand Prix: Titled Tuesday Blitz"]
[Site "Chess.com"]
[Date "2020.09.08"]
[Round "8"]
[White "zajka-molotok"]
[Black "BUITRONGHAO"]
[Result "1-0"]
[WhiteElo "2403"]
[BlackElo "2549"]
[TimeControl "180+1"]
[EndTime "11:37:17 PDT"]
[Termination "zajka-molotok won on time"]

1. d4 {[%clk 0:03:00.9]} 1... d5 {[%clk 0:02:59.7]} 2. c4 {[%clk 0:02:57.1]}
2... c6 {[%clk 0:02:59.9]} 3. cxd5 {[%clk 0:02:56.6]} 3... cxd5 {[%clk
0:03:00.8]} 4. Nc3 {[%clk 0:02:56.4]} 4... Nc6 {[%clk 0:03:01.5]} 5. e4 {[%clk
0:02:55.9]} 5... Nf6 {[%clk 0:02:30.3]} 6. e5 {[%clk 0:02:45.4]} 6... Ne4 {[%clk
0:02:30.5]} 7. Nf3 {[%clk 0:02:36.3]} 7... e6 {[%clk 0:02:11.3]} 8. Bd3 {[%clk
0:02:34]} 8... Bb4 {[%clk 0:02:09.7]} 9. O-O {[%clk 0:02:20.4]} 9... Nxc3 {[%clk
0:02:02.1]} 10. bxc3 {[%clk 0:02:18.7]} 10... Bxc3 {[%clk 0:02:03]} 11. Rb1
{[%clk 0:02:18.1]} 11... Qa5 {[%clk 0:01:33]} 12. Rb3 {[%clk 0:01:46.8]} 12...
Bb4 {[%clk 0:01:28.5]} 13. Bb1 {[%clk 0:01:24.8]} 13... b6 {[%clk 0:01:14.5]}
14. a3 {[%clk 0:01:08]} 14... Be7 {[%clk 0:01:13.4]} 15. Bd2 {[%clk 0:01:07.1]}
15... Qa4 {[%clk 0:01:10.3]} 16. Bc2 {[%clk 0:00:58.8]} 16... Nxd4 {[%clk
0:00:53.3]} 17. Nxd4 {[%clk 0:00:53.6]} 17... Qxd4 {[%clk 0:00:53.1]} 18. Rd3
{[%clk 0:00:48.8]} 18... Qc4 {[%clk 0:00:30.3]} 19. Rc3 {[%clk 0:00:44.1]} 19...
Qa6 {[%clk 0:00:30.1]} 20. Rc7 {[%clk 0:00:32.1]} 20... Bd7 {[%clk 0:00:29.8]}
21. Qg4 {[%clk 0:00:28.1]} 21... Kd8 {[%clk 0:00:14.6]} 22. Rc3 {[%clk
0:00:25.8]} 22... g6 {[%clk 0:00:14.7]} 23. Bg5 {[%clk 0:00:24.3]} 23... Re8
{[%clk 0:00:10.5]} 24. Rc1 {[%clk 0:00:23.5]} 24... Rc8 {[%clk 0:00:09.4]} 25.
Bd3 {[%clk 0:00:21.3]} 25... Qb7 {[%clk 0:00:08.2]} 26. Rxc8+ {[%clk 0:00:19.3]}
26... Bxc8 {[%clk 0:00:08.6]} 27. h4 {[%clk 0:00:17.4]} 27... Bxg5 {[%clk
0:00:08.2]} 28. Qxg5+ {[%clk 0:00:17.1]} 28... Qe7 {[%clk 0:00:08.8]} 29. Qh6
{[%clk 0:00:16.8]} 29... Bd7 {[%clk 0:00:05.9]} 30. Qxh7 {[%clk 0:00:16.1]}
30... a5 {[%clk 0:00:05.8]} 31. g3 {[%clk 0:00:15.2]} 31... b5 {[%clk
0:00:06.2]} 32. Qh6 {[%clk 0:00:15.2]} 32... b4 {[%clk 0:00:06.7]} 33. axb4
{[%clk 0:00:15]} 33... Qxb4 {[%clk 0:00:06.6]} 34. Qe3 {[%clk 0:00:15.1]} 34...
Ke7 {[%clk 0:00:06.4]} 35. Qg5+ {[%clk 0:00:14.7]} 35... Kf8 {[%clk 0:00:06.7]}
36. Qf6 {[%clk 0:00:13.5]} 36... Rc8 {[%clk 0:00:05.6]} 37. Rb1 {[%clk
0:00:12.5]} 37... Qc5 {[%clk 0:00:04.9]} 38. Bxg6 {[%clk 0:00:12.4]} 38... Be8
{[%clk 0:00:03.8]} 39. Rb7 {[%clk 0:00:11]} 39... Rc7 {[%clk 0:00:04.3]} 40. Rb8
{[%clk 0:00:10.7]} 40... Rc8 {[%clk 0:00:04.7]} 41. Rb7 {[%clk 0:00:10.1]} 41...
Rc7 {[%clk 0:00:05.2]} 42. Qh8+ {[%clk 0:00:09.7]} 42... Ke7 {[%clk 0:00:05.3]}
43. Rb8 {[%clk 0:00:10]} 43... Rc8 {[%clk 0:00:05.4]} 44. Qf6+ {[%clk
0:00:07.7]} 44... Kf8 {[%clk 0:00:05.7]} 45. Rb1 {[%clk 0:00:07.8]} 45... a4
{[%clk 0:00:05]} 46. h5 {[%clk 0:00:07.9]} 46... a3 {[%clk 0:00:04.2]} 47. h6
{[%clk 0:00:08.2]} 47... a2 {[%clk 0:00:04.9]} 48. Rf1 {[%clk 0:00:08.1]} 48...
Qxf2+ {[%clk 0:00:01.4]} 49. Qxf2 {[%clk 0:00:07.2]} 49... a1=Q {[%clk 0:00:02]}
50. Rxa1 {[%clk 0:00:06.6]} 50... Rc2 {[%clk 0:00:02.2]} 51. Qxc2 {[%clk
0:00:05.9]} 1-0

[Event "*** SCC Grand Prix: Titled Tuesday Blitz"]
[Site "Chess.com"]
[Date "2020.09.08"]
[Round "8"]
[White "mortngabriel"]
[Black "poppy73"]
[Result "0-1"]
[WhiteElo "2378"]
[BlackElo "2260"]
[TimeControl "180+1"]
[EndTime "11:37:18 PDT"]
[Termination "poppy73 won on time"]

1. e4 {[%clk 0:01:38.8]} 1... c5 {[%clk 0:02:58.6]} 2. Nf3 {[%clk 0:01:37.6]}
2... d6 {[%clk 0:02:58.7]} 3. d4 {[%clk 0:01:38.5]} 3... cxd4 {[%clk 0:02:59.6]}
4. Nxd4 {[%clk 0:01:39.4]} 4... Nf6 {[%clk 0:03:00.2]} 5. Nc3 {[%clk 0:01:39.9]}
5... a6 {[%clk 0:03:00.5]} 6. h3 {[%clk 0:01:40.3]} 6... e5 {[%clk 0:02:59.1]}
7. Nde2 {[%clk 0:01:40.2]} 7... h5 {[%clk 0:02:59.2]} 8. g3 {[%clk 0:01:40.6]}
8... Be6 {[%clk 0:02:51.8]} 9. Bg2 {[%clk 0:01:36.3]} 9... Be7 {[%clk
0:02:51.1]} 10. a4 {[%clk 0:01:35.5]} 10... Nbd7 {[%clk 0:02:50.9]} 11. O-O
{[%clk 0:01:34.1]} 11... Rc8 {[%clk 0:02:49.3]} 12. Be3 {[%clk 0:01:32.4]} 12...
Nb6 {[%clk 0:02:47.9]} 13. a5 {[%clk 0:01:29.7]} 13... Nc4 {[%clk 0:02:46.5]}
14. Bg5 {[%clk 0:01:23.5]} 14... Nxa5 {[%clk 0:02:33.9]} 15. Bxf6 {[%clk
0:01:23]} 15... Bxf6 {[%clk 0:02:32.2]} 16. Nd5 {[%clk 0:01:23.9]} 16... Bxd5
{[%clk 0:02:20]} 17. Qxd5 {[%clk 0:01:24.8]} 17... Rc5 {[%clk 0:02:12.8]} 18.
Qd3 {[%clk 0:01:20.7]} 18... Nc4 {[%clk 0:02:06.8]} 19. b3 {[%clk 0:01:20.5]}
19... Nb6 {[%clk 0:02:05.1]} 20. c4 {[%clk 0:01:13.5]} 20... O-O {[%clk
0:02:00.2]} 21. Nc3 {[%clk 0:01:14]} 21... Qc7 {[%clk 0:01:55.6]} 22. h4 {[%clk
0:00:56.8]} 22... g6 {[%clk 0:01:55.6]} 23. Rad1 {[%clk 0:00:51.3]} 23... Rd8
{[%clk 0:01:53.2]} 24. Bh3 {[%clk 0:00:47]} 24... Qe7 {[%clk 0:01:38]} 25. Rd2
{[%clk 0:00:39.2]} 25... Bg7 {[%clk 0:01:13.3]} 26. Rfd1 {[%clk 0:00:37.8]}
26... Bh6 {[%clk 0:01:13.4]} 27. Rb2 {[%clk 0:00:35.1]} 27... Bf8 {[%clk
0:01:10.1]} 28. Qe3 {[%clk 0:00:31.3]} 28... Qc7 {[%clk 0:00:59.5]} 29. Rd3
{[%clk 0:00:30.5]} 29... Kh7 {[%clk 0:00:51.4]} 30. Kg2 {[%clk 0:00:22.6]} 30...
Bh6 {[%clk 0:00:41.4]} 31. Qf3 {[%clk 0:00:22]} 31... Kg8 {[%clk 0:00:31.7]} 32.
Rb1 {[%clk 0:00:20.9]} 32... Kh7 {[%clk 0:00:30.6]} 33. Rbd1 {[%clk 0:00:20.7]}
33... Bf8 {[%clk 0:00:28.4]} 34. g4 {[%clk 0:00:16.5]} 34... hxg4 {[%clk
0:00:25.7]} 35. Bxg4 {[%clk 0:00:17.4]} 35... Qe7 {[%clk 0:00:24.7]} 36. Rh1
{[%clk 0:00:15.3]} 36... Bh6 {[%clk 0:00:21.7]} 37. h5 {[%clk 0:00:11.1]} 37...
Rg8 {[%clk 0:00:19.8]} 38. hxg6+ {[%clk 0:00:09.2]} 38... Rxg6 {[%clk 0:00:19]}
39. Kf1 {[%clk 0:00:05.8]} 39... Kg7 {[%clk 0:00:13.4]} 40. Bf5 {[%clk
0:00:05.6]} 40... Rg5 {[%clk 0:00:13.3]} 41. Qh3 {[%clk 0:00:05.4]} 41... Qf6
{[%clk 0:00:12.6]} 42. Ke2 {[%clk 0:00:04.9]} 42... Rc7 {[%clk 0:00:10.3]} 43.
Rf3 {[%clk 0:00:04.4]} 43... d5 {[%clk 0:00:03.3]} 44. exd5 {[%clk 0:00:02.3]}
44... e4 {[%clk 0:00:02.6]} 45. Bxe4 {[%clk 0:00:02.5]} 45... Qe5 {[%clk
0:00:01.1]} 0-1

[Event "*** SCC Grand Prix: Titled Tuesday Blitz"]
[Site "Chess.com"]
[Date "2020.09.08"]
[Round "8"]
[White "Love_craft"]
[Black "Bacyanide"]
[Result "0-1"]
[WhiteElo "2568"]
[BlackElo "2423"]
[TimeControl "180+1"]
[EndTime "11:37:21 PDT"]
[Termination "Bacyanide won by checkmate"]

1. Nf3 {[%clk 0:02:41.3]} 1... Nf6 {[%clk 0:02:56.8]} 2. g3 {[%clk 0:02:41.6]}
2... g6 {[%clk 0:02:57.7]} 3. Bg2 {[%clk 0:02:42.5]} 3... Bg7 {[%clk 0:02:57.7]}
4. O-O {[%clk 0:02:43.4]} 4... O-O {[%clk 0:02:58.2]} 5. d4 {[%clk 0:02:44.3]}
5... d6 {[%clk 0:02:58.3]} 6. c4 {[%clk 0:02:44.5]} 6... Nc6 {[%clk 0:02:58.8]}
7. d5 {[%clk 0:02:44.9]} 7... Na5 {[%clk 0:02:52.1]} 8. Nbd2 {[%clk 0:02:45.1]}
8... c6 {[%clk 0:02:48.5]} 9. e4 {[%clk 0:02:42.7]} 9... cxd5 {[%clk 0:02:46.2]}
10. cxd5 {[%clk 0:02:43.6]} 10... Nd7 {[%clk 0:02:36.9]} 11. Rb1 {[%clk
0:02:36.6]} 11... b5 {[%clk 0:02:29]} 12. b4 {[%clk 0:02:25.5]} 12... Nc4 {[%clk
0:02:26.3]} 13. Nxc4 {[%clk 0:02:25.4]} 13... bxc4 {[%clk 0:02:27.2]} 14. Qc2
{[%clk 0:02:18.7]} 14... c3 {[%clk 0:02:12.6]} 15. Be3 {[%clk 0:02:14.5]} 15...
Qc7 {[%clk 0:01:59.3]} 16. Bd4 {[%clk 0:02:10.8]} 16... Bb7 {[%clk 0:01:57.5]}
17. Bxg7 {[%clk 0:02:09.7]} 17... Kxg7 {[%clk 0:01:58.4]} 18. Rfc1 {[%clk
0:02:08.1]} 18... Rfc8 {[%clk 0:01:58.5]} 19. Rb3 {[%clk 0:02:07.3]} 19... Qc4
{[%clk 0:01:52.2]} 20. Bf1 {[%clk 0:01:57.5]} 20... Qc7 {[%clk 0:01:45.1]} 21.
Rxc3 {[%clk 0:01:56.6]} 21... Qb6 {[%clk 0:01:44.9]} 22. a3 {[%clk 0:01:46.9]}
22... Ne5 {[%clk 0:01:39.1]} 23. Nxe5 {[%clk 0:01:45.1]} 23... dxe5 {[%clk
0:01:40]} 24. Rc5 {[%clk 0:01:40.8]} 24... a5 {[%clk 0:01:32.9]} 25. Qc3 {[%clk
0:01:36]} 25... axb4 {[%clk 0:01:31]} 26. Qxe5+ {[%clk 0:01:31.3]} 26... Kg8
{[%clk 0:01:20.7]} 27. axb4 {[%clk 0:01:27.8]} 27... Qxb4 {[%clk 0:01:08.2]} 28.
Qxe7 {[%clk 0:01:25.2]} 28... Re8 {[%clk 0:01:00.8]} 29. Qd6 {[%clk 0:01:04.7]}
29... Qxe4 {[%clk 0:01:00]} 30. h4 {[%clk 0:00:11.3]} 30... Rad8 {[%clk
0:00:58.5]} 31. Qf6 {[%clk 0:00:07.9]} 31... Bxd5 {[%clk 0:00:57.3]} 32. Rxd5
{[%clk 0:00:04.1]} 32... Qxd5 {[%clk 0:00:48.9]} 33. Bc4 {[%clk 0:00:03.5]}
33... Qd7 {[%clk 0:00:48.8]} 34. h5 {[%clk 0:00:03.5]} 34... Qe7 {[%clk
0:00:46.7]} 35. Qa6 {[%clk 0:00:03.3]} 35... Rd6 {[%clk 0:00:43.5]} 36. Qb5
{[%clk 0:00:02.8]} 36... Qd7 {[%clk 0:00:37.4]} 37. Qa5 {[%clk 0:00:02.2]} 37...
Rd1+ {[%clk 0:00:36.4]} 38. Rxd1 {[%clk 0:00:02.6]} 38... Qxd1+ {[%clk
0:00:36.9]} 39. Bf1 {[%clk 0:00:02.4]} 39... Qxh5 {[%clk 0:00:36.3]} 40. Qa4
{[%clk 0:00:02.4]} 40... Qe5 {[%clk 0:00:35.5]} 41. Qb4 {[%clk 0:00:02.4]} 41...
Kg7 {[%clk 0:00:34.7]} 42. Qa4 {[%clk 0:00:02.8]} 42... Re7 {[%clk 0:00:34.3]}
43. Qc6 {[%clk 0:00:02.9]} 43... h5 {[%clk 0:00:34]} 44. Qc8 {[%clk 0:00:02.9]}
44... Qg5 {[%clk 0:00:33.7]} 45. Qh3 {[%clk 0:00:03.3]} 45... h4 {[%clk
0:00:32.3]} 46. g4 {[%clk 0:00:03.7]} 46... f5 {[%clk 0:00:30.5]} 47. Qc3+
{[%clk 0:00:03.6]} 47... Qf6 {[%clk 0:00:30.5]} 48. Qf3 {[%clk 0:00:04.1]} 48...
Qg5 {[%clk 0:00:25.9]} 49. Bh3 {[%clk 0:00:03.4]} 49... fxg4 {[%clk 0:00:23.4]}
50. Bxg4 {[%clk 0:00:04.3]} 50... Rf7 {[%clk 0:00:23.4]} 51. Qc3+ {[%clk
0:00:03.7]} 51... Kh7 {[%clk 0:00:23.3]} 52. Qh3 {[%clk 0:00:02.8]} 52... Rf4
{[%clk 0:00:20.4]} 53. f3 {[%clk 0:00:02.7]} 53... Kh6 {[%clk 0:00:20.2]} 54.
Qf1 {[%clk 0:00:02.5]} 54... Rxg4+ {[%clk 0:00:19.6]} 55. fxg4 {[%clk
0:00:02.3]} 55... Qxg4+ {[%clk 0:00:20.5]} 56. Kh1 {[%clk 0:00:02.5]} 56... h3
{[%clk 0:00:19.8]} 57. Qd3 {[%clk 0:00:02.2]} 57... Qg2# {[%clk 0:00:18.6]} 0-1

[Event "*** SCC Grand Prix: Titled Tuesday Blitz"]
[Site "Chess.com"]
[Date "2020.09.08"]
[Round "8"]
[White "BocharovD"]
[Black "GM_dmitrij"]
[Result "0-1"]
[WhiteElo "2794"]
[BlackElo "2921"]
[TimeControl "180+1"]
[EndTime "11:37:25 PDT"]
[Termination "GM_dmitrij won on time"]

1. c4 {[%clk 0:03:00.9]} 1... e5 {[%clk 0:02:59.8]} 2. d3 {[%clk 0:03:00.4]}
2... Nf6 {[%clk 0:02:57.4]} 3. Nf3 {[%clk 0:03:00.3]} 3... Bb4+ {[%clk
0:02:56.5]} 4. Nbd2 {[%clk 0:02:59.8]} 4... O-O {[%clk 0:02:49.5]} 5. Nxe5
{[%clk 0:02:50.2]} 5... Re8 {[%clk 0:02:49.8]} 6. Nf3 {[%clk 0:02:48.8]} 6... d5
{[%clk 0:02:50]} 7. cxd5 {[%clk 0:02:42.4]} 7... Qxd5 {[%clk 0:02:50.9]} 8. e4
{[%clk 0:02:24.6]} 8... Bg4 {[%clk 0:02:37.7]} 9. Be2 {[%clk 0:02:21]} 9... Qd7
{[%clk 0:02:36.6]} 10. O-O {[%clk 0:02:14.3]} 10... Nc6 {[%clk 0:02:36.9]} 11.
Nb3 {[%clk 0:02:06.3]} 11... Rad8 {[%clk 0:02:35.2]} 12. Be3 {[%clk 0:02:05.5]}
12... Bxf3 {[%clk 0:02:20.8]} 13. Bxf3 {[%clk 0:01:50.5]} 13... Ne5 {[%clk
0:02:21.2]} 14. Be2 {[%clk 0:01:30.4]} 14... Nxd3 {[%clk 0:02:17.1]} 15. Qc2
{[%clk 0:01:26.1]} 15... Ne5 {[%clk 0:02:09.4]} 16. Rfd1 {[%clk 0:01:23.7]}
16... Qc8 {[%clk 0:02:05.3]} 17. f3 {[%clk 0:01:17.5]} 17... b6 {[%clk 0:02:00]}
18. Rac1 {[%clk 0:01:10.2]} 18... Bd6 {[%clk 0:01:57.3]} 19. Nd4 {[%clk
0:01:07.3]} 19... c5 {[%clk 0:01:25.1]} 20. Nf5 {[%clk 0:01:01.9]} 20... Bf8
{[%clk 0:01:24.9]} 21. Bb5 {[%clk 0:00:57.9]} 21... Rxd1+ {[%clk 0:01:23.8]} 22.
Rxd1 {[%clk 0:00:57.3]} 22... Rd8 {[%clk 0:01:24.7]} 23. Bg5 {[%clk 0:00:45.1]}
23... Rxd1+ {[%clk 0:01:04.2]} 24. Qxd1 {[%clk 0:00:46]} 24... c4 {[%clk
0:01:05.1]} 25. Kh1 {[%clk 0:00:44]} 25... a6 {[%clk 0:00:59]} 26. Ba4 {[%clk
0:00:37.2]} 26... Nd3 {[%clk 0:00:59.4]} 27. Qd2 {[%clk 0:00:35.6]} 27... Bc5
{[%clk 0:00:50.7]} 28. h3 {[%clk 0:00:24.5]} 28... Qc7 {[%clk 0:00:45.1]} 29.
Bh4 {[%clk 0:00:22.6]} 29... g6 {[%clk 0:00:38]} 30. Bc2 {[%clk 0:00:13.6]}
30... Nh5 {[%clk 0:00:20.5]} 31. Bxd3 {[%clk 0:00:13]} 31... cxd3 {[%clk
0:00:21.4]} 32. Nh6+ {[%clk 0:00:09.6]} 32... Kg7 {[%clk 0:00:21.5]} 33. Ng4
{[%clk 0:00:10]} 33... Ng3+ {[%clk 0:00:15.9]} 34. Bxg3 {[%clk 0:00:09.6]} 34...
Qxg3 {[%clk 0:00:16.8]} 35. b4 {[%clk 0:00:06.9]} 35... Bd4 {[%clk 0:00:15]} 36.
Qh6+ {[%clk 0:00:04.2]} 36... Kg8 {[%clk 0:00:14.2]} 37. Qd2 {[%clk 0:00:04.8]}
37... h5 {[%clk 0:00:13.6]} 38. Ne3 {[%clk 0:00:04.9]} 38... Qf4 {[%clk
0:00:12.8]} 39. Nf1 {[%clk 0:00:03.9]} 39... Qxd2 {[%clk 0:00:13]} 40. Nxd2
{[%clk 0:00:04.8]} 40... Bc3 {[%clk 0:00:13.8]} 41. Nf1 {[%clk 0:00:05.2]} 41...
Bxb4 {[%clk 0:00:12.9]} 42. Ne3 {[%clk 0:00:05.4]} 42... Bc5 {[%clk 0:00:12.7]}
43. Nd1 {[%clk 0:00:05.4]} 43... h4 {[%clk 0:00:12.9]} 44. Kh2 {[%clk
0:00:04.9]} 44... g5 {[%clk 0:00:11.5]} 45. g3 {[%clk 0:00:05.3]} 45... Bd6
{[%clk 0:00:11.6]} 46. f4 {[%clk 0:00:05.5]} 46... hxg3+ {[%clk 0:00:12]} 47.
Kxg3 {[%clk 0:00:06.4]} 47... Bxf4+ {[%clk 0:00:11.7]} 48. Kf3 {[%clk
0:00:07.3]} 48... Kg7 {[%clk 0:00:11.3]} 49. Nf2 {[%clk 0:00:06.9]} 49... d2
{[%clk 0:00:10.6]} 50. Ke2 {[%clk 0:00:07.4]} 50... Kg6 {[%clk 0:00:10.7]} 51.
Nd3 {[%clk 0:00:08.1]} 51... Kh5 {[%clk 0:00:10.4]} 52. Nxf4+ {[%clk 0:00:03.1]}
52... gxf4 {[%clk 0:00:11.3]} 53. Kxd2 {[%clk 0:00:03.7]} 53... Kh4 {[%clk
0:00:11.5]} 54. Ke2 {[%clk 0:00:03.2]} 54... Kg3 {[%clk 0:00:11.8]} 0-1